bitfinex/quotes_BTCUSD_20250526
["timestamp","ask_amount","ask_price","bid_price","bid_amount"]
[1748235974071,0.0353,109390.0,109370.0,0.01654964]
[1748235974271,0.0353,109390.0,109380.0,0.00228526]
[1748235976561,0.0293,109390.0,109380.0,0.00228526]
[1748235978794,0.0293,109390.0,109350.0,0.33977772]
[1748235979056,0.0293,109390.0,109370.0,0.01454085]
[1748235979256,0.0293,109390.0,109380.0,0.00228512]
[1748235980765,0.08954556,109410.0,109380.0,0.00228512]
[1748235980766,0.08954556,109410.0,109380.0,0.15408512]
[1748235980954,0.033,109410.0,109380.0,0.24363068]
[1748235981180,0.017,109400.0,109390.0,0.10408641]
[1748235981395,0.016,109410.0,109390.0,0.10408641]
[1748235981580,0.017,109400.0,109390.0,0.10408641]
[1748235982062,0.033,109410.0,109390.0,0.10408641]
[1748235982479,0.0327,109400.0,109390.0,0.10408641]
[1748235982682,0.0327,109400.0,109390.0,0.25588641]
[1748235983665,0.0267,109400.0,109390.0,0.25588641]
[1748235987578,0.0267,109400.0,109370.0,0.0536]
[1748235987852,0.0339,109380.0,109370.0,0.61864556]
[1748235988084,0.0339,109380.0,109370.0,0.4918]
[1748235988969,0.0339,109380.0,109370.0,0.003]
[1748235990166,0.0339,109380.0,109360.0,0.4802]
[1748235990385,0.0319,109390.0,109360.0,0.4802909]
[1748235990620,0.0319,109380.0,109370.0,0.001]
[1748235990833,0.0259,109380.0,109370.0,0.001]
[1748235991089,0.0167,109370.0,109360.0,0.4802909]
[1748235991327,0.0137,109370.0,109360.0,0.4812909]
[1748235991754,0.0137,109370.0,109360.0,0.4802909]
[1748235992423,0.0137,109370.0,109360.0,0.4822909]
[1748235993402,0.0137,109370.0,109360.0,0.0020909]
[1748235993662,0.1055309,109370.0,109360.0,0.0020909]
[1748235993872,0.12004556,109370.0,109360.0,0.0030909]
[1748235994084,0.1223309,109370.0,109360.0,0.0030909]
[1748235994538,0.1223309,109370.0,109360.0,0.0020909]
[1748235994762,0.1223309,109370.0,109360.0,0.0010909]
[1748235995195,0.11967088,109370.0,109360.0,0.0010909]
[1748235996862,0.26567088,109370.0,109360.0,0.0010909]
[1748235997065,0.26338554,109370.0,109360.0,0.0010909]
[1748235997271,0.26638554,109370.0,109360.0,0.0010909]
[1748235998230,0.11438554,109370.0,109360.0,0.0010909]
[1748235998383,0.26267088,109370.0,109360.0,0.0010909]
[1748235998583,0.26038554,109370.0,109360.0,0.0010909]
[1748235999195,0.74923657,109370.0,109360.0,0.0010909]
[1748236004900,1.08923657,109370.0,109360.0,0.0010909]
[1748236005535,1.10377742,109370.0,109360.0,0.0010909]
[1748236006602,1.09777742,109370.0,109360.0,0.0010909]
[1748236009068,2.28609986,109370.0,109300.0,0.5265]
[1748236009284,0.0162,109330.0,109300.0,0.3733]
[1748236009484,0.1080309,109330.0,109300.0,0.3733]
[1748236009695,0.1241309,109330.0,109300.0,0.3733]
[1748236010047,0.1231309,109330.0,109300.0,0.3733]
[1748236010458,0.12327994,109330.0,109300.0,0.3733]
[1748236010679,0.12427994,109330.0,109300.0,0.3863]
[1748236011255,0.12427994,109330.0,109300.0,0.3803]
[1748236011481,0.12527994,109330.0,109300.0,0.41748732]
[1748236012475,0.11007994,109330.0,109300.0,0.41748732]
[1748236013262,0.12637994,109330.0,109300.0,0.41748732]
[1748236013896,0.2377346,109330.0,109310.0,0.03538681]
[1748236014644,0.2367346,109330.0,109310.0,0.03538681]
[1748236014848,0.2537346,109330.0,109310.0,0.03538681]
[1748236015250,0.2537346,109330.0,109310.0,0.03938681]
[1748236016129,0.2357346,109330.0,109310.0,0.03938681]
[1748236016335,0.2357346,109330.0,109310.0,0.04238681]
[1748236016535,0.2367346,109330.0,109310.0,0.04238681]
[1748236017140,0.0906946,109330.0,109310.0,0.04238681]
[1748236017343,0.2367346,109330.0,109310.0,0.04238681]
[1748236017615,0.14718904,109330.0,109320.0,0.0323]
[1748236018206,0.14718904,109330.0,109320.0,0.0155]
[1748236018406,0.14718904,109330.0,109310.0,0.04158681]
[1748236019229,0.14618904,109330.0,109310.0,0.03858681]
[1748236019446,0.14618904,109330.0,109320.0,0.002]
[1748236019654,0.00014904,109330.0,109320.0,0.002]
[1748236019854,0.14618904,109330.0,109320.0,0.002]
[1748236020020,0.14718904,109330.0,109320.0,0.002]
[1748236020559,0.14718904,109330.0,109320.0,0.004]
[1748236020929,0.14718904,109330.0,109320.0,0.0362]
[1748236021355,0.14118904,109330.0,109320.0,0.0362]
[1748236021534,0.14604,109330.0,109320.0,0.0362]
[1748236021926,0.14604,109330.0,109320.0,0.0207]
[1748236023840,0.14604,109330.0,109320.0,0.004]
[1748236025552,0.17904,109330.0,109320.0,0.004]
[1748236028887,0.26258556,109330.0,109320.0,0.004]
[1748236036659,0.25658556,109330.0,109320.0,0.004]
[1748236036861,0.25658556,109330.0,109320.0,0.002]
[1748236037041,0.0157,109320.0,109300.0,0.40348732]
[1748236037245,0.0137,109320.0,109300.0,0.40348732]
[1748236038987,0.0147,109320.0,109300.0,0.41148732]
[1748236040340,0.0322,109310.0,109300.0,0.03918732]
[1748236040555,0.0162,109310.0,109300.0,0.03918732]
[1748236040756,0.14608,109310.0,109300.0,0.03918732]
[1748236041242,0.14608,109310.0,109300.0,0.008]
[1748236041438,0.16406534,109310.0,109300.0,0.008]
[1748236041583,0.16406534,109310.0,109290.0,0.04547971]
[1748236041794,0.16406534,109310.0,109290.0,0.06087971]
[1748236041995,0.16506534,109310.0,109300.0,0.006]
[1748236042587,0.16506534,109310.0,109300.0,0.003]
[1748236042898,0.16506534,109310.0,109290.0,0.0368]
[1748236043154,0.16506534,109310.0,109290.0,0.0398]
[1748236043360,0.16506534,109310.0,109290.0,0.0348]
[1748236043498,0.16506534,109310.0,109290.0,0.06254524]
[1748236043700,0.15906534,109310.0,109290.0,0.04714524]
[1748236043899,0.17576534,109310.0,109290.0,0.04714524]
[1748236044319,0.17576534,109310.0,109290.0,0.06264524]
[1748236044725,0.0319,109300.0,109280.0,6e-05]
[1748236044935,0.14608,109290.0,109280.0,6e-05]
[1748236045338,0.14308,109290.0,109280.0,6e-05]
[1748236045550,0.14108,109290.0,109280.0,6e-05]
[1748236045954,0.15886534,109290.0,109280.0,0.00206]
[1748236046381,0.15891503,109290.0,109280.0,0.00206]
[1748236046795,0.15891503,109290.0,109280.0,0.00406]
[1748236047842,0.17441503,109290.0,109280.0,0.00406]
[1748236048863,0.01783503,109290.0,109280.0,0.00406]
[1748236049042,0.16262969,109290.0,109280.0,0.00406]
[1748236049242,0.27146059,109290.0,109280.0,0.00406]
[1748236049449,0.26917525,109290.0,109280.0,0.00406]
[1748236050060,0.25217525,109290.0,109280.0,0.00406]
[1748236050908,0.29880969,109290.0,109280.0,0.00406]
[1748236051110,0.29880969,109290.0,109280.0,0.01996]
[1748236051304,0.29880969,109290.0,109280.0,0.00406]
[1748236051446,0.29280969,109290.0,109280.0,0.00406]
[1748236052283,0.30960969,109290.0,109280.0,0.00406]
[1748236053215,0.0168,109290.0,109280.0,0.00406]
[1748236053413,0.31556,109290.0,109280.0,0.00406]
[1748236054543,0.31556,109290.0,109280.0,0.00206]
[1748236054770,0.31856,109290.0,109280.0,0.00306]
[1748236055271,0.31856,109290.0,109280.0,0.00106]
[1748236055966,0.33446,109290.0,109280.0,0.00106]
[1748236057717,0.31856,109290.0,109280.0,0.00106]
[1748236058377,0.30176,109290.0,109280.0,0.00106]
[1748236058979,0.42410556,109290.0,109280.0,0.00106]
[1748236060276,0.41810556,109290.0,109280.0,0.00106]
[1748236064043,0.90695659,109290.0,109280.0,0.00106]
[1748236064252,0.41810556,109290.0,109280.0,0.00106]
[1748236064459,0.90695659,109290.0,109280.0,0.00106]
[1748236064903,0.90395659,109290.0,109280.0,6e-05]
[1748236065355,0.90895659,109290.0,109280.0,0.00106]
[1748236067289,0.42622556,109290.0,109280.0,0.00106]
[1748236067691,0.12734556,109290.0,109280.0,0.00106]
[1748236067895,0.4225109,109290.0,109280.0,0.00106]
[1748236068102,0.90907659,109290.0,109280.0,0.00106]
[1748236071910,0.42022556,109290.0,109280.0,0.00106]
[1748236072121,0.90907659,109290.0,109280.0,0.00106]
[1748236074404,0.90907659,109290.0,109280.0,0.00101269]
[1748236075668,0.90311659,109290.0,109280.0,0.00101269]
[1748236076157,0.11534556,109290.0,109280.0,0.00101269]
[1748236076374,0.41426556,109290.0,109280.0,0.00101269]
[1748236076551,0.41126556,109290.0,109280.0,1.269e-05]
[1748236076970,0.41426556,109290.0,109280.0,0.00101269]
[1748236077165,0.41426556,109290.0,109280.0,1.269e-05]
[1748236077452,0.90711659,109290.0,109280.0,0.001]
[1748236077705,0.91115659,109290.0,109280.0,0.002]
[1748236078148,0.90715659,109290.0,109280.0,0.001]
[1748236078563,0.91015659,109290.0,109280.0,0.001]
[1748236083413,0.90415659,109290.0,109280.0,0.001]
[1748236090713,0.11634556,109290.0,109280.0,0.001]
[1748236090908,0.38250556,109290.0,109280.0,0.001]
[1748236091201,0.37650556,109290.0,109280.0,0.001]
[1748236091631,0.07754556,109290.0,109280.0,0.001]
[1748236091824,0.0798309,109290.0,109280.0,0.0329]
[1748236092100,0.37650556,109290.0,109280.0,0.0329]
[1748236092790,0.07754556,109290.0,109280.0,0.0329]
[1748236092993,0.3787909,109290.0,109280.0,0.0329]
[1748236093248,0.37650556,109290.0,109280.0,0.0329]
[1748236093857,0.012,109290.0,109280.0,0.0329]
[1748236094014,0.15816,109290.0,109280.0,0.0329]
[1748236094443,0.16044534,109290.0,109280.0,0.0329]
[1748236095018,0.17614534,109290.0,109270.0,0.031]
[1748236095228,0.17814534,109290.0,109270.0,0.031]
[1748236095854,0.17514534,109290.0,109270.0,0.031]
[1748236096051,0.17714534,109290.0,109270.0,0.031]
[1748236096462,0.03098534,109290.0,109270.0,0.031]
[1748236096700,0.32970534,109290.0,109270.0,0.031]
[1748236096993,0.31842,109290.0,109270.0,0.031]
[1748236097177,0.32042,109290.0,109270.0,0.031]
[1748236098092,0.00228534,109280.0,109270.0,0.031]
[1748236098291,0.31670534,109290.0,109270.0,0.031]
[1748236098797,0.30472,109290.0,109270.0,0.031]
[1748236099016,0.30272,109290.0,109270.0,0.031]
[1748236099245,0.002,109280.0,109270.0,0.031]
[1748236100215,0.30272,109290.0,109270.0,0.031]
[1748236100430,0.30072,109290.0,109270.0,0.031]
[1748236100597,0.002,109280.0,109270.0,0.031]
[1748236102592,0.004,109280.0,109270.0,0.031]
[1748236106744,0.29872,109290.0,109280.0,0.0319]
[1748236107927,0.29872,109290.0,109270.0,0.03608485]
[1748236108123,0.30072,109290.0,109270.0,0.03608485]
[1748236108355,0.30372,109290.0,109270.0,0.03608485]
[1748236108693,0.30172,109290.0,109270.0,0.03608485]
[1748236109108,0.29872,109290.0,109270.0,0.03608485]
[1748236109317,0.14612,109280.0,109270.0,0.03608485]
[1748236109643,0.14612,109280.0,109270.0,0.03379713]
[1748236111087,0.34666836,109300.0,109280.0,0.0323]
[1748236111227,0.19406836,109300.0,109280.0,0.0323]
[1748236111455,0.14612,109290.0,109280.0,0.0162]
[1748236112351,0.14012,109290.0,109280.0,0.032]
[1748236112558,0.14612,109290.0,109280.0,0.032]
[1748236112755,0.14912,109290.0,109280.0,0.032]
[1748236113207,0.003,109290.0,109280.0,0.032]
[1748236113419,0.14912,109290.0,109280.0,0.032]
[1748236114283,0.14912,109290.0,109280.0,0.05900908]
[1748236114906,0.15112,109290.0,109280.0,0.05900908]
[1748236116058,0.15112,109290.0,109280.0,0.032]
[1748236117989,0.005,109290.0,109280.0,0.032]
[1748236118356,0.15112,109290.0,109280.0,0.032]
[1748236119736,0.15112,109290.0,109280.0,0.0162]
[1748236120121,0.14512,109290.0,109280.0,0.0162]
[1748236120654,0.14512,109290.0,109270.0,0.05989538]
[1748236121659,0.14512,109290.0,109270.0,0.05889538]
[1748236122020,0.14612,109290.0,109270.0,0.05989538]
[1748236123285,0.001,109290.0,109270.0,0.05989538]
[1748236123456,0.14712,109290.0,109270.0,0.05989538]
[1748236124525,0.16362,109290.0,109270.0,0.05989538]
[1748236125681,0.17892,109290.0,109270.0,0.00149713]
[1748236125896,0.16242,109290.0,109270.0,0.00149713]
[1748236126110,0.017,109280.0,109270.0,0.00149713]
[1748236126931,0.26916556,109290.0,109270.0,0.00149713]
[1748236127288,0.26316556,109290.0,109270.0,0.00149713]
[1748236127713,0.26316556,109290.0,109270.0,0.00049713]
[1748236127922,0.26316556,109290.0,109270.0,0.00149713]
[1748236128126,0.26316556,109290.0,109260.0,0.09116176]
[1748236128351,0.26316556,109290.0,109260.0,0.0913108]
[1748236128513,0.26316556,109290.0,109270.0,0.001]
[1748236134348,0.25716556,109290.0,109270.0,0.001]
[1748236139953,0.76149816,109290.0,109270.0,0.001]
[1748236140715,0.91385816,109290.0,109270.0,0.001]
[1748236141377,0.90785816,109290.0,109270.0,0.001]
[1748236141995,0.12204556,109290.0,109270.0,0.001]
[1748236142205,0.97203676,109290.0,109270.0,0.001]
[1748236142433,0.42052556,109290.0,109270.0,0.001]
[1748236146069,0.97203676,109290.0,109270.0,0.001]
[1748236146218,0.8824912,109290.0,109270.0,0.0346]
[1748236147386,0.33098,109290.0,109270.0,0.0346]
[1748236148402,0.32498,109290.0,109270.0,0.0346]
[1748236152584,0.8764912,109290.0,109270.0,0.0346]
[1748236152763,0.8764912,109290.0,109270.0,0.0177]
[1748236154862,0.32498,109290.0,109270.0,0.0177]
[1748236155486,0.30968,109290.0,109270.0,0.0177]
[1748236155823,0.30968,109290.0,109270.0,0.0347]
[1748236158541,0.32668,109290.0,109270.0,0.0347]
[1748236159583,0.32668,109290.0,109270.0,0.0177]
[1748236159986,0.8781912,109290.0,109270.0,0.0177]
[1748236161509,0.8781912,109290.0,109270.0,0.001]
[1748236162089,0.017,109290.0,109270.0,0.001]
[1748236162285,0.8825912,109290.0,109270.0,0.001]
[1748236162513,0.0158,109280.0,109270.0,0.001]
[1748236163454,0.0158,109280.0,109260.0,0.03122875]
[1748236163599,0.0158,109280.0,109270.0,0.001]
[1748236163799,0.0158,109280.0,109270.0,0.002]
[1748236164854,0.65685676,109280.0,109270.0,0.001]
[1748236165611,0.67375676,109280.0,109270.0,0.001]
[1748236165811,0.74687956,109280.0,109270.0,0.001]
[1748236167663,0.74687956,109280.0,109270.0,0.002]
[1748236168271,0.67375676,109280.0,109270.0,0.002]
[1748236169626,0.96603676,109280.0,109270.0,0.002]
[1748236182732,0.81991676,109280.0,109270.0,0.002]
[1748236182947,0.96607676,109280.0,109270.0,0.002]
[1748236186263,0.66775676,109280.0,109270.0,0.002]
[1748236186434,0.93933676,109280.0,109270.0,0.002]
[1748236187772,0.64105676,109280.0,109270.0,0.002]
[1748236187957,0.93933676,109280.0,109270.0,0.002]
[1748236191440,0.38782556,109280.0,109270.0,0.002]
[1748236191555,0.93933676,109280.0,109270.0,0.002]
[1748236196684,0.79317676,109280.0,109270.0,0.002]
[1748236196888,0.38782556,109280.0,109270.0,0.0357]
[1748236197705,0.29828,109290.0,109280.0,0.0337]
[1748236198908,0.30028,109290.0,109280.0,0.0347]
[1748236199102,0.8457912,109300.0,109280.0,0.0347]
[1748236199410,0.93933676,109300.0,109280.0,0.0347]
[1748236200094,0.38782556,109300.0,109290.0,0.0316]
[1748236200644,0.33054389,109310.0,109290.0,0.0316]
[1748236200906,0.001,109300.0,109290.0,0.0316]
[1748236201624,0.5525112,109300.0,109290.0,0.0316]
[1748236201832,0.5545112,109300.0,109290.0,0.0316]
[1748236202183,0.5565112,109300.0,109290.0,0.0326]
[1748236203826,0.002,109290.0,109250.0,0.02907971]
[1748236204030,0.002,109290.0,109250.0,0.27079496]
[1748236204415,0.002,109290.0,109260.0,0.00228783]
[1748236205269,0.002,109290.0,109260.0,0.10408641]
[1748236205911,0.0184,109290.0,109250.0,0.31683054]
[1748236206104,0.0184,109290.0,109250.0,0.4103761]
[1748236206333,0.002,109290.0,109250.0,0.4063761]
[1748236206535,0.002,109290.0,109250.0,0.4023761]
[1748236206752,0.74237956,109300.0,109250.0,0.4023761]
[1748236206965,0.74237956,109300.0,109270.0,0.0157]
[1748236207355,0.74237956,109300.0,109270.0,0.0323]
[1748236207881,0.001,109290.0,109270.0,0.0323]
[1748236208563,0.001,109290.0,109270.0,0.0333]
[1748236208781,0.74237956,109300.0,109270.0,0.0323]
[1748236209167,0.74237956,109300.0,109270.0,0.0333]
[1748236209371,0.19486836,109300.0,109270.0,0.0343]
[1748236211418,0.19486836,109300.0,109270.0,0.0333]
[1748236211739,0.19486836,109300.0,109270.0,0.0343]
[1748236212636,0.74637956,109300.0,109270.0,0.0343]
[1748236214521,0.74037956,109300.0,109270.0,0.0343]
[1748236215310,0.74037956,109300.0,109270.0,0.0349]
[1748236215513,0.74037956,109300.0,109280.0,0.0163]
[1748236216798,0.74137956,109300.0,109280.0,0.0163]
[1748236217211,0.74137956,109300.0,109280.0,0.0173]
[1748236217451,0.74237956,109300.0,109280.0,0.0173]
[1748236219196,0.73247956,109300.0,109280.0,0.033]
[1748236219873,0.73247956,109300.0,109280.0,0.0173]
[1748236219874,0.74797956,109300.0,109280.0,0.0173]
[1748236221092,0.89409956,109300.0,109280.0,0.0173]
[1748236222245,0.74197956,109300.0,109280.0,0.0173]
[1748236222691,0.88809956,109300.0,109280.0,0.001]
[1748236223474,0.74197956,109300.0,109280.0,0.001]
[1748236223611,0.88809956,109300.0,109280.0,0.001]
[1748236225143,0.74197956,109300.0,109280.0,0.001]
[1748236225351,0.88809956,109300.0,109280.0,0.001]
[1748236225801,0.74197956,109300.0,109280.0,0.001]
[1748236226116,0.88809956,109300.0,109280.0,0.001]
[1748236226399,0.74197956,109300.0,109280.0,0.001]
[1748236226596,0.88809956,109300.0,109280.0,0.001]
[1748236228143,0.87179956,109300.0,109280.0,0.001]
[1748236228320,0.88839956,109300.0,109280.0,0.001]
[1748236228682,0.81527676,109300.0,109280.0,0.001]
[1748236228892,0.26376556,109300.0,109280.0,0.001]
[1748236229921,0.25776556,109300.0,109280.0,0.001]
[1748236231725,0.11164556,109300.0,109280.0,0.001]
[1748236231849,0.25776556,109300.0,109280.0,0.001]
[1748236233342,0.80927676,109300.0,109280.0,0.001]
[1748236233609,0.66315676,109300.0,109280.0,0.001]
[1748236233818,0.80927676,109300.0,109280.0,0.001]
[1748236234416,0.96131676,109300.0,109280.0,0.001]
[1748236234623,0.81519676,109300.0,109280.0,0.001]
[1748236234820,0.96131676,109300.0,109280.0,0.001]
[1748236235424,0.40980556,109300.0,109280.0,0.001]
[1748236236324,0.26368556,109300.0,109280.0,0.001]
[1748236236524,0.40980556,109300.0,109280.0,0.001]
[1748236237045,0.26368556,109300.0,109280.0,0.001]
[1748236237260,0.40966716,109300.0,109280.0,0.001]
[1748236237474,0.26354716,109300.0,109280.0,0.001]
[1748236237723,0.40966716,109300.0,109280.0,0.001]
[1748236238125,0.26354716,109300.0,109280.0,0.001]
[1748236238351,0.40966716,109300.0,109280.0,0.001]
[1748236238468,0.26354716,109300.0,109280.0,0.001]
[1748236238668,0.40366716,109300.0,109280.0,0.001]
[1748236239628,0.95517836,109300.0,109280.0,0.001]
[1748236240157,0.80905836,109300.0,109280.0,0.001]
[1748236240366,0.0169,109290.0,109280.0,0.001]
[1748236241698,0.0179,109290.0,109270.0,0.0332]
[1748236242209,0.001,109290.0,109270.0,0.0332]
[1748236242335,0.002,109290.0,109280.0,0.001]
[1748236242544,0.001,109290.0,109280.0,0.001]
[1748236243862,0.95347836,109300.0,109270.0,0.0342]
[1748236244126,0.95347836,109300.0,109270.0,0.0352]
[1748236244324,0.95347836,109300.0,109270.0,0.0342]
[1748236244543,0.001,109290.0,109270.0,0.0342]
[1748236244729,0.002,109290.0,109280.0,0.001]
[1748236244931,0.95347836,109300.0,109270.0,0.0332]
[1748236245227,0.95347836,109300.0,109270.0,0.0342]
[1748236245439,0.95347836,109300.0,109270.0,0.0352]
[1748236245682,0.95347836,109300.0,109270.0,0.0342]
[1748236245885,0.001,109290.0,109280.0,0.001]
[1748236246206,0.0166,109290.0,109280.0,0.001]
[1748236246416,0.0106,109290.0,109280.0,0.001]
[1748236247013,0.0277,109290.0,109270.0,0.0173]
[1748236247387,0.0277,109290.0,109270.0,0.0183]
[1748236247811,0.0277,109290.0,109270.0,0.0322]
[1748236247996,0.0287,109290.0,109280.0,0.001]
[1748236248148,0.0297,109290.0,109280.0,0.001]
[1748236248632,0.0287,109290.0,109280.0,0.001]
[1748236248838,0.0277,109290.0,109270.0,0.0332]
[1748236249147,0.0287,109290.0,109280.0,0.001]
[1748236249539,0.0116,109290.0,109280.0,0.001]
[1748236249740,0.0126,109290.0,109280.0,0.001]
[1748236250400,0.0282,109290.0,109270.0,0.0322]
[1748236250591,0.0282,109290.0,109270.0,0.0342]
[1748236250798,0.0282,109290.0,109270.0,0.0322]
[1748236251608,0.0116,109290.0,109270.0,0.0332]
[1748236252023,0.028,109290.0,109270.0,0.0332]
[1748236252238,0.028,109290.0,109270.0,0.0352]
[1748236254349,0.0222,109290.0,109270.0,0.0352]
[1748236260238,0.0056,109290.0,109270.0,0.0352]
[1748236261940,0.93657836,109300.0,109270.0,0.0352]
[1748236262998,0.0167,109290.0,109270.0,0.001]
[1748236263201,0.0167,109290.0,109270.0,0.0177]
[1748236263476,0.0167,109290.0,109270.0,0.0187]
[1748236264381,0.0167,109290.0,109270.0,0.0177]
[1748236264536,0.0167,109290.0,109270.0,0.0167]
[1748236264859,0.0167,109290.0,109270.0,0.0177]
[1748236264995,0.0327,109290.0,109270.0,0.01858249]
[1748236265202,0.12224556,109290.0,109250.0,0.08954556]
[1748236265400,0.12424556,109290.0,109250.0,0.08954556]
[1748236265657,0.001,109270.0,109250.0,0.08954556]
[1748236266403,0.001,109270.0,109250.0,0.09354556]
[1748236266658,0.001,109270.0,109250.0,0.09754556]
[1748236266875,0.001,109270.0,109250.0,0.09354556]
[1748236267293,0.002,109270.0,109250.0,0.09754556]
[1748236267588,0.002,109270.0,109250.0,0.12496056]
[1748236267752,0.002,109270.0,109250.0,0.12096056]
[1748236267977,0.002,109270.0,109250.0,0.12396056]
[1748236268418,0.002,109270.0,109260.0,0.0161]
[1748236268768,0.002,109270.0,109260.0,0.3561]
[1748236269519,0.001,109270.0,109260.0,0.3561]
[1748236269667,0.17636836,109290.0,109260.0,0.3724]
[1748236269874,0.001,109270.0,109260.0,0.3744]
[1748236270673,0.0156,109280.0,109260.0,0.3724]
[1748236270873,0.0156,109280.0,109260.0,0.3744]
[1748236271089,0.0156,109280.0,109260.0,0.3724]
[1748236271506,0.0156,109280.0,109260.0,0.3714]
[1748236271733,0.0156,109280.0,109260.0,0.3724]
[1748236272236,0.0156,109280.0,109260.0,0.3714]
[1748236272436,0.0156,109280.0,109260.0,0.3744]
[1748236272636,0.001,109270.0,109260.0,0.3754]
[1748236272839,0.0314,109280.0,109260.0,0.3571]
[1748236273248,0.0324,109280.0,109260.0,0.3601]
[1748236273561,0.0324,109280.0,109260.0,0.3571]
[1748236273761,0.0324,109280.0,109260.0,0.3601]
[1748236273991,0.001,109270.0,109260.0,0.3601]
[1748236274128,0.001,109270.0,109260.0,0.3571]
[1748236274492,0.001,109270.0,109260.0,0.3591]
[1748236274779,0.001,109270.0,109260.0,0.3611]
[1748236275635,0.001,109270.0,109260.0,0.345]
[1748236275846,0.001,109270.0,109260.0,0.37421819]
[1748236276172,0.0314,109280.0,109260.0,0.37121819]
[1748236276918,0.001,109270.0,109260.0,0.37421819]
[1748236277483,0.0254,109280.0,109260.0,0.36921819]
[1748236277656,0.0264,109280.0,109260.0,0.37221819]
[1748236277876,0.0264,109280.0,109260.0,0.37121819]
[1748236278007,0.0264,109280.0,109260.0,0.04851819]
[1748236278205,0.001,109270.0,109260.0,0.03421819]
[1748236278871,0.001,109270.0,109260.0,0.05061819]
[1748236279081,0.001,109270.0,109260.0,0.04861819]
[1748236279381,0.001,109270.0,109260.0,0.05061819]
[1748236279967,0.0254,109280.0,109260.0,0.04761819]
[1748236280171,0.0264,109280.0,109260.0,0.05061819]
[1748236280511,0.0264,109280.0,109260.0,0.04761819]
[1748236280872,0.001,109270.0,109260.0,0.04861819]
[1748236281077,0.001,109270.0,109260.0,0.04561819]
[1748236281281,0.001,109270.0,109260.0,0.05061819]
[1748236281683,0.001,109270.0,109260.0,0.04861819]
[1748236282042,0.001,109270.0,109260.0,0.05061819]
[1748236282920,0.0254,109280.0,109260.0,0.04761819]
[1748236283123,0.0254,109280.0,109260.0,0.03121819]
[1748236283325,0.001,109270.0,109260.0,0.03421819]
[1748236283822,0.001,109270.0,109260.0,0.03221819]
[1748236284034,0.0254,109280.0,109260.0,0.02921819]
[1748236284191,0.0254,109280.0,109260.0,0.03121819]
[1748236284388,0.0264,109280.0,109260.0,0.03421819]
[1748236284589,0.0264,109280.0,109260.0,0.02921819]
[1748236284790,0.0345,109270.0,109260.0,0.003]
[1748236285060,0.0295,109270.0,109260.0,0.005]
[1748236285420,0.0295,109270.0,109260.0,0.003]
[1748236285742,0.0295,109270.0,109260.0,0.005]
[1748236286047,0.0285,109270.0,109260.0,0.002]
[1748236286435,0.0285,109270.0,109260.0,0.005]
[1748236286638,0.0285,109270.0,109260.0,0.002]
[1748236287025,0.0295,109270.0,109260.0,0.005]
[1748236287884,0.0295,109270.0,109260.0,0.003]
[1748236288014,0.11904556,109270.0,109260.0,0.005]
[1748236292903,0.11304556,109270.0,109260.0,0.005]
[1748236300827,0.10704556,109270.0,109260.0,0.005]
[1748236303840,0.12384556,109270.0,109260.0,0.005]
[1748236305253,0.13758665,109270.0,109260.0,0.005]
[1748236308040,0.12384556,109270.0,109260.0,0.005]
[1748236310633,0.0331,109260.0,109220.0,0.17233208]
[1748236310849,0.12264556,109260.0,109230.0,0.00233809]
[1748236312296,0.12364556,109260.0,109230.0,0.00433809]
[1748236312448,0.12364556,109260.0,109230.0,0.34433809]
[1748236312676,0.12464556,109260.0,109230.0,0.34004979]
[1748236312874,0.12564556,109260.0,109230.0,0.34204979]
[1748236313051,0.0165,109250.0,109230.0,0.34204979]
[1748236313490,0.0165,109250.0,109230.0,0.37114979]
[1748236313695,0.0165,109250.0,109240.0,0.0022883]
[1748236314914,0.10843394,109260.0,109240.0,0.0022883]
[1748236315363,0.001,109250.0,109240.0,0.0022883]
[1748236315566,0.0184,109250.0,109230.0,0.34404979]
[1748236315735,0.0184,109250.0,109230.0,0.34004979]
[1748236315919,0.0194,109250.0,109240.0,0.0042883]
[1748236316120,0.0194,109250.0,109240.0,0.004]
[1748236316418,0.0194,109250.0,109240.0,0.0062883]
[1748236316620,0.0194,109250.0,109240.0,0.002]
[1748236317902,0.0358,109250.0,109230.0,0.004]
[1748236318766,0.0338,109250.0,109220.0,0.29499764]
[1748236318991,0.0349492,109250.0,109240.0,0.002]
[1748236319429,0.11036038,109250.0,109240.0,0.002]
[1748236319802,0.0346,109240.0,109230.0,0.002]
[1748236320002,0.0346,109240.0,109220.0,0.008]
[1748236320224,0.03488838,109240.0,109220.0,0.008]
[1748236320431,0.18104838,109240.0,109220.0,0.008]
[1748236321201,0.18104838,109240.0,109220.0,0.002]
[1748236321823,0.18004838,109240.0,109220.0,0.002]
[1748236322049,0.17404838,109240.0,109220.0,0.002]
[1748236322245,0.17504838,109240.0,109220.0,0.002]
[1748236322719,0.17504838,109240.0,109220.0,0.004]
[1748236323335,0.0178,109230.0,109220.0,0.004]
[1748236324476,0.0178,109230.0,109220.0,0.002]
[1748236324682,0.0178,109230.0,109220.0,0.004]
[1748236325200,0.0346,109230.0,109220.0,0.004]
[1748236325373,0.0356,109230.0,109220.0,0.004]
[1748236325995,0.0356,109230.0,109220.0,0.002]
[1748236326403,0.0346,109230.0,109220.0,0.002]
[1748236326612,0.0356,109230.0,109220.0,0.002]
[1748236326820,0.03788838,109230.0,109220.0,0.002]
[1748236329091,0.03188838,109230.0,109220.0,0.002]
[1748236329897,0.10501118,109230.0,109220.0,0.002]
[1748236330274,0.03188838,109230.0,109220.0,0.002]
[1748236335748,0.1758,109230.0,109220.0,0.002]
[1748236336155,0.17208838,109230.0,109220.0,0.002]
[1748236337873,0.26163394,109230.0,109220.0,0.002]